[Event "Hunan Belt and Road Open 2019"]
[Site "Hunan"]
[Date "2019.08.04"]
[Round "7.34"]
[White "Lin, Weiguo"]
[Black "Munkhgal, Gombosuren"]
[Result "0-1"]
[ECO "E14"]
[WhiteElo "2408"]
[BlackElo "2442"]
[Annotator "NA"]
[PlyCount "74"]
[EventDate "2019.07.29"]
[EventType "swiss"]
[EventCountry "CHN"]
[SourceTitle "playchess.com"]
[Source "ChessBase"]
[SourceQuality "1"]
[TimeControl "5400+30"]

1. d4 {[%emt 0:00:00]} e6 {[%emt 0:00:00]} 2. c4 {[%emt 0:00:00]} Nf6 {[%emt 0:00:00]} 3. Nf3 {[%emt 0:00:19]} d5 {[%emt 0:00:00]} 4. e3 {[%emt 0:00:40]} a6 {[%emt 0:00:00]} 5. Nc3 {[%emt 0:00:40]} Be7 {[%emt 0:02:36]} 6. b3 {[%emt 0:02:45]} b6 {[%emt 0:03:27]} 7. Bd3 {[%emt 0:01:21]} Bb7 {[%emt 0:00:06]} 8. O-O {[%emt 0:00:07]} O-O {[%emt 0:00:16]} 9. Bb2 {[%emt 0:00:31]} Nbd7 {[%emt 0:02:24]} 10. Qe2 {[%emt 0:00:15]} Ne4 {[%emt 0:05:48]} 11. Bxe4 {[%emt 0:06:03]} dxe4 {[%emt 0:00:04]} 12. Nd2 {[%emt 0:00:10]} f5 {[%emt 0:00:21]} 13. f3 {[%emt 0:00:23]} exf3 {[%emt 0:03:29]} 14. Nxf3 {[%emt 0:00:02]} Nf6 {[%emt 0:02:01]} 15. Rad1 {[%emt 0:02:06]} Qe8 {[%emt 0:01:28]} 16. d5 {[%emt 0:13:56]} Bc5 {[%emt 0:16:03]} 17. dxe6 {[%emt 0:09:01]} Ng4 {[%emt 0:19:40]} 18. Nd4 {[%emt 0:03:26]} Qg6 {[%emt 0:01:23]} 19. g3 {[%emt 0:15:00]} Rae8 {[%emt 0:16:58]} 20. Nd5 {[%emt 0:01:32]} Bd6 {[%emt 0:06:22]} 21. b4 {[%emt 0:22:06]} c5 {[%emt 0:02:59]} 22. bxc5 {[%emt 0:00:27]} bxc5 {[%emt 0:00:08]} 23. Ba3 {[%emt 0:03:46]} Bc8 {[%emt 0:07:49]} 24. e7 {[%emt 0:07:37]} Bxe7 {[%emt 0:00:36]} 25. Nb3 {[%emt 0:00:01]} Bg5 {[%emt 0:01:25]} 26. Bxc5 {[%emt 0:00:09]} Rf7 {[%emt 0:01:38]} 27. Nf4 {[%emt 0:02:32]} Bxf4 {[%emt 0:00:48]} 28. Rxf4 {[%emt 0:00:01]} Bb7 {[%emt 0:00:41]} 29. Rd6 {[%emt 0:00:05]} Qh5 {[%emt 0:00:54]} 30. Nd4 {[%emt 0:01:02]} Be4 {[%emt 0:00:42]} 31. Rxa6 {[%emt 0:02:18]} h6 {[%emt 0:00:23]} 32. Rb6 {[%emt 0:00:24]} Bd3 {[%emt 0:00:27]} 33. Qd2 {[%emt 0:00:27]} Rxe3 {[%emt 0:04:38]} 34. Nf3 {[%emt 0:01:51]} Qh3 {[%emt 0:00:08]} 35. Qg2 {[%emt 0:03:50]} Qxg2+ {[%emt 0:00:12]} 36. Kxg2 {[%emt 0:00:01]} Re2+ {[%emt 0:00:07]} 37. Kg1 {[%emt 0:00:18]} Be4 {[%emt 0:01:14]} 0-1

[Event "Hunan Belt and Road Open 2019"]
[Site "Hunan"]
[Date "2019.08.04"]
[Round "7.35"]
[White "Setyaki, Azarya Jodi"]
[Black "Raja Harshit"]
[Result "0-1"]
[ECO "B90"]
[WhiteElo "2409"]
[BlackElo "2434"]
[Annotator "NA"]
[PlyCount "54"]
[EventDate "2019.07.29"]
[EventType "swiss"]
[EventCountry "CHN"]
[SourceTitle "playchess.com"]
[Source "ChessBase"]
[SourceQuality "1"]
[TimeControl "5400+30"]

1. e4 {[%emt 0:02:27]} c5 {[%emt 0:00:00]} 2. Nf3 {[%emt 0:00:06]} d6 {[%emt 0:00:00]} 3. d4 {[%emt 0:00:06]} cxd4 {[%emt 0:00:00]} 4. Nxd4 {[%emt 0:00:04]} Nf6 {[%emt 0:00:07]} 5. Nc3 {[%emt 0:00:04]} a6 {[%emt 0:00:09]} 6. f3 {[%emt 0:00:11]} e5 {[%emt 0:00:13]} 7. Nb3 {[%emt 0:00:05]} Be6 {[%emt 0:00:06]} 8. Be3 {[%emt 0:00:05]} Nbd7 {[%emt 0:00:06]} 9. Qd2 {[%emt 0:00:05]} h5 {[%emt 0:00:17]} 10. Be2 {[%emt 0:02:02]} Rc8 {[%emt 0:02:58]} 11. Nd5 {[%emt 0:01:57]} Nxd5 {[%emt 0:00:16]} 12. exd5 {[%emt 0:00:06]} Bf5 {[%emt 0:00:04]} 13. c4 {[%emt 0:01:24]} Qh4+ {[%emt 0:00:09]} 14. Bf2 {[%emt 0:02:18]} Qf6 {[%emt 0:01:11]} 15. O-O {[%emt 0:05:53]} Be7 {[%emt 0:00:35]} 16. Na5 {[%emt 0:03:10]} Qg6 {[%emt 0:01:17]} 17. Kh1 {[%emt 0:02:02]} Rc7 {[%emt 0:07:38]} 18. b4 {[%emt 0:04:51]} h4 {[%emt 0:03:39]} 19. Rfd1 {[%emt 0:10:09]} Nf6 {[%emt 0:09:12]} 20. c5 {[%emt 0:03:38]} h3 {[%emt 0:20:17]} 21. g3 {[%emt 0:05:29]} Be4 {[%emt 0:15:34]} 22. Nc4 {[%emt 0:07:26]} Qf5 {[%emt 0:06:01]} 23. Qc3 {[%emt 0:10:16]} Bxd5 {[%emt 0:01:56]} 24. cxd6 {[%emt 0:12:22]} Rxc4 {[%emt 0:02:42]} 25. Bxc4 {[%emt 0:00:20]} Bxf3+ {[%emt 0:01:27]} 26. Kg1 {[%emt 0:00:05]} Bxd1 {[%emt 0:01:37]} 27. Bd3 {[%emt 0:00:14]} Qf3 {[%emt 0:05:04]} 0-1

[Event "Hunan Belt and Road Open 2019"]
[Site "Hunan"]
[Date "2019.08.04"]
[Round "7.36"]
[White "Li, Shilong"]
[Black "Xie, Jianjun"]
[Result "0-1"]
[ECO "B07"]
[WhiteElo "2457"]
[BlackElo "2417"]
[Annotator "ChessBase"]
[PlyCount "104"]
[EventDate "2019.07.29"]
[EventType "swiss"]
[EventCountry "CHN"]
[SourceTitle "playchess.com"]
[Source "ChessBase"]
[SourceQuality "1"]
[TimeControl "5400+30"]

1. e4 {[%emt 0:00:00]} d6 {[%emt 0:00:00]} 2. d4 {[%emt 0:00:00]} Nf6 {[%emt 0:00:00]} 3. Nc3 {[%emt 0:00:00]} c6 {[%emt 0:00:00]} 4. f4 {[%emt 0:00:27]} Qa5 {[%emt 0:00:00]} 5. Bd3 {[%emt 0:00:18]} e5 {[%emt 0:02:43]} 6. Nf3 {[%emt 0:00:11]} Bg4 {[%emt 0:00:17]} 7. Be3 {[%emt 0:00:40]} Qb6 {[%emt 0:00:15]} 8. fxe5 {[%emt 0:03:24]} dxe5 {[%emt 0:00:16]} 9. Qd2 {[%emt 0:00:12]} Nfd7 {[%emt 0:06:35]} 10. O-O-O {[%emt 1:00:32]} Bxf3 {[%emt 0:12:17]} 11. dxe5 {[%emt 0:00:25]} Bc5 {[%emt 0:05:24]} 12. Bxc5 {[%emt 0:00:05]} Qxc5 {[%emt 0:00:06]} 13. gxf3 {[%emt 0:00:03]} Nxe5 {[%emt 0:00:05]} 14. Be2 {[%emt 0:04:58]} Qe7 {[%emt 0:08:53]} 15. f4 {[%emt 0:03:43]} Ng6 {[%emt 0:01:38]} 16. e5 {[%emt 0:07:37]} Nd7 {[%emt 0:02:06]} 17. Ne4 {[%emt 0:00:57]} O-O-O {[%emt 0:00:49]} 18. Bg4 {[%emt 0:04:59]} Kc7 {[%emt 0:01:19]} 19. Nd6 {[%emt 0:10:25]} Nb6 {[%emt 0:20:43]} 20. Qa5 {[%emt 0:00:22]} Kb8 {[%emt 0:00:31]} 21. Nf5 {[%emt 0:00:37]} Qc7 {[%emt 0:01:58]} 22. Rhf1 {[%emt 0:00:20]} Nd5 {[%emt 0:03:14]} 23. Qxc7+ {[%emt 0:00:25]} Kxc7 {[%emt 0:00:06]} 24. e6 {[%emt 0:00:44]} h5 {[%emt 0:03:50]} 25. Bf3 {[%emt 0:00:32]} fxe6 {[%emt 0:00:35]} 26. Nxg7 {[%emt 0:00:32]} Ndxf4 {[%emt 0:00:08]} 27. Rde1 {[%emt 0:00:24]} e5 {[%emt 0:01:22]} 28. Rg1 {[%emt 0:00:35]} Rdg8 {[%emt 0:04:29]} 29. Nf5 {[%emt 0:00:01]} Rf8 {[%emt 0:00:27]} 30. Be4 {[%emt 0:00:25]} Rf6 {[%emt 0:00:09]} 31. b3 {[%emt 0:01:04]} Rhf8 {[%emt 0:02:23]} 32. Ng7 {[%emt 0:00:21]} Rg8 {[%emt 0:04:02]} 33. Nf5 {[%emt 0:00:02]} Ne7 {[%emt 0:03:46]} 34. Rxg8 {[%emt 0:00:50]} Nxg8 {[%emt 0:00:01]} 35. Ne3 {[%emt 0:00:37]} b5 {[%emt 0:01:41]} 36. a4 {[%emt 0:00:37]} a6 {[%emt 0:01:46]} 37. axb5 {[%emt 0:00:22]} axb5 {[%emt 0:00:01]} 38. Kb2 {[%emt 0:00:06]} Rd6 {[%emt 0:00:55]} 39. Nf5 {[%emt 0:01:05]} Rd2 {[%emt 0:00:20]} 40. h4 {[%emt 0:00:30]} Nf6 {[%emt 0:00:13]} 41. Bh1 {[%emt 0:00:31]} Rf2 {[%emt 0:02:14]} 42. Kb1 {[%emt 0:00:25]} Ne2 {[%emt 0:02:02]} 43. Ne3 {[%emt 0:00:32]} e4 {[%emt 0:01:14]} 44. Kb2 {[%emt 0:00:31]} Kd6 {[%emt 0:01:06]} 45. Nd1 {[%emt 0:00:28]} Rh2 {[%emt 0:00:15]} 46. Nc3 {[%emt 0:00:31]} Nxc3 47. Kxc3 {[%emt 0:00:01]} Ke5 {[%emt 0:00:37]} 48. Rg1 {[%emt 0:00:57]} Nd5+ {[%emt 0:00:46]} 49. Kb2 {[%emt 0:00:07]} Ne3 {[%emt 0:00:08]} 50. Rg5+ {[%emt 0:00:53]} Kf4 {[%emt 0:00:11]} 51. Bxe4 {[%emt 0:00:13]} Kxe4 {[%emt 0:00:03]} 52. Rc5 {[%emt 0:00:06]} Rxc2+ {[%emt 0:00:13]} 0-1

[Event "Hunan Belt and Road Open 2019"]
[Site "Hunan"]
[Date "2019.08.05"]
[Round "8.27"]
[White "Taher, Yoseph Theolifus"]
[Black "Zhao, Chenxi"]
[Result "1/2-1/2"]
[ECO "C22"]
[WhiteElo "2460"]
[BlackElo "2400"]
[Annotator "ChessBase"]
[PlyCount "63"]
[EventDate "2019.07.29"]
[EventType "swiss"]
[EventCountry "CHN"]
[SourceTitle "playchess.com"]
[Source "ChessBase"]
[SourceQuality "1"]
[TimeControl "5400+30"]

1. e4 {[%emt 0:00:00]} e5 {[%emt 0:00:00]} 2. d4 {[%emt 0:01:07]} exd4 {[%emt 0:00:00]} 3. Qxd4 {[%emt 0:00:07]} Nc6 {[%emt 0:00:02]} 4. Qe3 {[%emt 0:00:06]} Nf6 {[%emt 0:00:29]} 5. Nc3 {[%emt 0:00:07]} Bb4 {[%emt 0:00:15]} 6. Bd2 {[%emt 0:00:06]} O-O {[%emt 0:00:37]} 7. O-O-O {[%emt 0:00:06]} Re8 {[%emt 0:01:44]} 8. Bc4 {[%emt 0:00:06]} Ne5 {[%emt 0:09:09]} 9. Bb3 {[%emt 0:00:18]} d6 {[%emt 0:00:44]} 10. f3 {[%emt 0:00:13]} a5 {[%emt 0:01:42]} 11. a3 {[%emt 0:00:59]} Bc5 {[%emt 0:06:31]} 12. Qe1 {[%emt 0:00:40]} b5 {[%emt 0:04:24]} 13. Nxb5 {[%emt 0:04:20]} a4 {[%emt 0:00:32]} 14. Ba2 {[%emt 0:00:18]} c6 {[%emt 0:08:04]} 15. Nc3 {[%emt 0:00:31]} Qb6 {[%emt 0:00:05]} 16. Bf4 {[%emt 0:27:46]} Bd7 {[%emt 0:01:54]} 17. Bxe5 {[%emt 0:00:29]} dxe5 {[%emt 0:00:40]} 18. Rd3 {[%emt 0:01:56]} Reb8 {[%emt 0:02:02]} 19. Nd1 {[%emt 0:00:36]} Bc8 {[%emt 0:01:09]} 20. Bc4 {[%emt 0:06:22]} Ne8 {[%emt 0:03:30]} 21. f4 {[%emt 0:10:07]} exf4 {[%emt 0:07:13]} 22. Nf3 {[%emt 0:01:24]} Nd6 {[%emt 0:05:56]} 23. Ba2 {[%emt 0:00:51]} Ba6 {[%emt 0:06:26]} 24. Rxd6 {[%emt 0:00:23]} Bxd6 {[%emt 0:00:02]} 25. e5 {[%emt 0:00:06]} Be7 {[%emt 0:02:13]} 26. Qe4 {[%emt 0:01:47]} Kh8 {[%emt 0:02:33]} 27. h4 {[%emt 0:05:08]} f5 {[%emt 0:02:31]} 28. Qxf5 {[%emt 0:02:34]} Bxa3 {[%emt 0:02:24]} 29. Ng5 {[%emt 0:10:01]} Bxb2+ {[%emt 0:00:25]} 30. Kb1 {[%emt 0:00:03]} Bd4+ {[%emt 0:00:48]} 31. Bb3 {[%emt 0:00:07]} Bd3 {[%emt 0:00:05]} 32. Nf7+ {[%emt 0:02:33]} 1/2-1/2

[Event "Hunan Belt and Road Open 2019"]
[Site "Hunan"]
[Date "2019.08.05"]
[Round "8.28"]
[White "Lou, Yiping"]
[Black "Lin, Yi"]
[Result "0-1"]
[ECO "D85"]
[WhiteElo "2489"]
[BlackElo "2406"]
[Annotator "ChessBase"]
[PlyCount "146"]
[EventDate "2019.07.29"]
[EventType "swiss"]
[EventCountry "CHN"]
[SourceTitle "playchess.com"]
[Source "ChessBase"]
[SourceQuality "1"]
[TimeControl "5400+30"]

1. c4 {[%emt 0:00:58]} g6 {[%emt 0:00:00]} 2. Nf3 {[%emt 0:00:43]} Nf6 {[%emt 0:00:00]} 3. Nc3 {[%emt 0:00:07]} d5 {[%emt 0:00:00]} 4. cxd5 {[%emt 0:00:16]} Nxd5 {[%emt 0:00:06]} 5. Qb3 {[%emt 0:00:07]} Nb6 {[%emt 0:00:08]} 6. d4 {[%emt 0:00:07]} Be6 {[%emt 0:04:46]} 7. Qc2 {[%emt 0:04:02]} Bg7 {[%emt 0:00:19]} 8. e4 {[%emt 0:01:38]} Bg4 {[%emt 0:02:49]} 9. Be3 {[%emt 0:01:26]} O-O {[%emt 0:02:45]} 10. Ne5 {[%emt 0:03:10]} Be6 {[%emt 0:10:23]} 11. O-O-O {[%emt 0:07:33]} Nc6 {[%emt 0:02:42]} 12. f4 {[%emt 0:02:51]} Nxe5 {[%emt 0:05:08]} 13. dxe5 {[%emt 0:01:14]} Qc8 {[%emt 0:00:18]} 14. h4 {[%emt 0:01:43]} h5 {[%emt 0:01:13]} 15. Kb1 {[%emt 0:07:50]} c6 {[%emt 0:02:31]} 16. Ne2 {[%emt 0:03:35]} Bg4 {[%emt 0:11:55]} 17. Rd2 {[%emt 0:02:15]} Rd8 {[%emt 0:02:11]} 18. Nd4 {[%emt 0:02:20]} c5 {[%emt 0:04:47]} 19. Nb3 {[%emt 0:02:55]} Rxd2 {[%emt 0:03:55]} 20. Nxd2 {[%emt 0:01:49]} Nd7 {[%emt 0:00:08]} 21. Bc4 {[%emt 0:00:55]} b6 {[%emt 0:02:06]} 22. Qb3 {[%emt 0:12:25]} e6 {[%emt 0:00:57]} 23. Nf3 {[%emt 0:06:50]} Qb7 {[%emt 0:02:58]} 24. Bd3 {[%emt 0:04:23]} Rc8 {[%emt 0:05:05]} 25. Rc1 {[%emt 0:03:39]} Bxf3 {[%emt 0:00:37]} 26. gxf3 {[%emt 0:00:04]} Qc7 {[%emt 0:01:35]} 27. f5 {[%emt 0:06:16]} Nxe5 {[%emt 0:01:37]} 28. Ba6 {[%emt 0:00:54]} Rd8 {[%emt 0:02:01]} 29. Bg5 {[%emt 0:02:26]} Rd4 {[%emt 0:04:15]} 30. f4 {[%emt 0:01:03]} Ng4 {[%emt 0:02:54]} 31. fxe6 {[%emt 0:00:36]} fxe6 {[%emt 0:06:01]} 32. Qxe6+ {[%emt 0:02:54]} Qf7 {[%emt 0:00:06]} 33. Qc8+ {[%emt 0:01:04]} Kh7 {[%emt 0:00:13]} 34. e5 {[%emt 0:00:49]} Ne3 {[%emt 0:01:08]} 35. Bb5 {[%emt 0:04:33]} Rxf4 {[%emt 0:03:02]} 36. Bxf4 {[%emt 0:02:31]} Qxf4 {[%emt 0:00:02]} 37. Qd7 {[%emt 0:00:38]} Qxe5 {[%emt 0:00:45]} 38. Qd2 {[%emt 0:00:05]} Nf5 {[%emt 0:01:52]} 39. Re1 {[%emt 0:01:15]} Qf6 {[%emt 0:01:18]} 40. Bd3 {[%emt 0:00:48]} Nxh4 {[%emt 0:01:31]} 41. Rf1 {[%emt 0:00:56]} Qe5 {[%emt 0:05:05]} 42. a3 {[%emt 0:00:27]} Nf5 {[%emt 0:01:16]} 43. Bxf5 {[%emt 0:01:57]} gxf5 {[%emt 0:00:03]} 44. Qc2 {[%emt 0:00:30]} Kg6 {[%emt 0:04:07]} 45. Qg2+ {[%emt 0:00:21]} Kf7 {[%emt 0:01:48]} 46. Qb7+ {[%emt 0:00:15]} Kg6 {[%emt 0:02:58]} 47. Qg2+ {[%emt 0:00:07]} Kf6 {[%emt 0:01:04]} 48. Qc6+ {[%emt 0:00:16]} Qe6 {[%emt 0:00:30]} 49. Qf3 {[%emt 0:00:08]} h4 {[%emt 0:00:31]} 50. Qf4 {[%emt 0:00:37]} Qe5 {[%emt 0:00:44]} 51. Qxh4+ {[%emt 0:00:10]} Kf7 {[%emt 0:00:07]} 52. Qf2 {[%emt 0:00:49]} Bf6 {[%emt 0:00:52]} 53. Re1 {[%emt 0:00:28]} Qd4 {[%emt 0:00:27]} 54. Qe2 {[%emt 0:01:11]} f4 {[%emt 0:00:28]} 55. Rf1 {[%emt 0:00:25]} c4 {[%emt 0:00:32]} 56. Ka2 {[%emt 0:02:12]} a5 {[%emt 0:00:20]} 57. Rd1 {[%emt 0:00:36]} Qc5 {[%emt 0:00:49]} 58. Rd7+ {[%emt 0:00:50]} Kg6 {[%emt 0:00:19]} 59. Qe8+ {[%emt 0:02:20]} Kf5 {[%emt 0:00:38]} 60. Qh5+ {[%emt 0:00:57]} Ke4 {[%emt 0:00:30]} 61. Qe2+ {[%emt 0:00:48]} Kf5 {[%emt 0:00:06]} 62. Qf3 {[%emt 0:01:13]} Be5 {[%emt 0:00:36]} 63. Rf7+ {[%emt 0:01:21]} Ke6 {[%emt 0:00:13]} 64. Qh5 {[%emt 0:00:22]} Bf6 {[%emt 0:00:37]} 65. Qxc5 bxc5 {[%emt 0:00:01]} 66. Rh7 {[%emt 0:01:47]} f3 {[%emt 0:00:36]} 67. Rh3 {[%emt 0:00:34]} f2 {[%emt 0:00:02]} 68. Rf3 {[%emt 0:00:04]} Bd4 {[%emt 0:00:04]} 69. Kb1 {[%emt 0:01:10]} Ke5 {[%emt 0:00:11]} 70. Kc2 {[%emt 0:00:15]} Ke4 {[%emt 0:00:04]} 71. Rf8 {[%emt 0:00:25]} Ke3 {[%emt 0:00:07]} 72. Kd1 {[%emt 0:00:22]} Be5 {[%emt 0:01:05]} 73. a4 {[%emt 0:01:14]} Bf4 {[%emt 0:00:12]} 0-1

[Event "Hunan Belt and Road Open 2019"]
[Site "Hunan"]
[Date "2019.08.05"]
[Round "8.30"]
[White "Raja Harshit"]
[Black "Fang, Yuxiang"]
[Result "1/2-1/2"]
[ECO "C54"]
[WhiteElo "2434"]
[BlackElo "2476"]
[Annotator "ChessBase"]
[PlyCount "58"]
[EventDate "2019.07.29"]
[EventType "swiss"]
[EventCountry "CHN"]
[SourceTitle "playchess.com"]
[Source "ChessBase"]
[SourceQuality "1"]
[TimeControl "5400+30"]

1. e4 {[%emt 0:00:20]} e5 {[%emt 0:01:25]} 2. Nf3 {[%emt 0:00:29]} Nc6 {[%emt 0:01:11]} 3. Bc4 {[%emt 0:01:25]} Nf6 {[%emt 0:02:56]} 4. d3 {[%emt 0:00:35]} Bc5 {[%emt 0:01:36]} 5. c3 {[%emt 0:01:02]} d6 {[%emt 0:00:44]} 6. O-O {[%emt 0:00:15]} h6 {[%emt 0:01:53]} 7. Re1 {[%emt 0:01:08]} O-O {[%emt 0:01:50]} 8. Nbd2 {[%emt 0:00:04]} a5 {[%emt 0:09:01]} 9. h3 {[%emt 0:01:39]} Be6 {[%emt 0:01:53]} 10. Bb5 {[%emt 0:00:33]} Na7 {[%emt 0:02:39]} 11. Ba4 {[%emt 0:10:43]} b5 {[%emt 0:08:44]} 12. Bc2 {[%emt 0:03:47]} Nc6 {[%emt 0:01:11]} 13. Nf1 {[%emt 0:05:08]} Bb6 {[%emt 0:02:49]} 14. d4 {[%emt 0:04:40]} Bd7 {[%emt 0:00:51]} 15. a4 {[%emt 0:02:46]} bxa4 {[%emt 0:04:37]} 16. Ng3 {[%emt 0:06:05]} Re8 {[%emt 0:01:17]} 17. Bb1 {[%emt 0:14:15]} Na7 {[%emt 0:15:33]} 18. Bd2 {[%emt 0:10:47]} c5 {[%emt 0:09:55]} 19. dxe5 {[%emt 0:03:07]} dxe5 {[%emt 0:02:15]} 20. Ba2 {[%emt 0:00:26]} Nb5 {[%emt 0:03:23]} 21. Qc1 {[%emt 0:04:46]} Nd6 {[%emt 0:05:58]} 22. Bxh6 {[%emt 0:06:50]} gxh6 {[%emt 0:00:11]} 23. Qxh6 {[%emt 0:00:06]} c4 {[%emt 0:00:01]} 24. Qg5+ {[%emt 0:11:57]} Kh8 {[%emt 0:02:32]} 25. Qh6+ {[%emt 0:02:14]} Kg8 {[%emt 0:00:01]} 26. Qg5+ {[%emt 0:00:04]} Kh8 {[%emt 0:00:32]} 27. Qh6+ {[%emt 0:07:14]} Kg8 {[%emt 0:00:03]} 28. Qg5+ {[%emt 0:01:00]} Kh8 {[%emt 0:01:32]} 29. Qh6+ {[%emt 0:00:29]} Kg8 {[%emt 0:00:05]} 1/2-1/2

[Event "Hunan Belt and Road Open 2019"]
[Site "Hunan"]
[Date "2019.08.05"]
[Round "8.32"]
[White "Xiang, Zeyu"]
[Black "Xie, Jianjun"]
[Result "1-0"]
[ECO "A90"]
[WhiteElo "2447"]
[BlackElo "2417"]
[Annotator "ChessBase"]
[PlyCount "65"]
[EventDate "2019.07.29"]
[EventType "swiss"]
[EventCountry "CHN"]
[SourceTitle "playchess.com"]
[Source "ChessBase"]
[SourceQuality "1"]
[TimeControl "5400+30"]

1. d4 {[%emt 0:00:00]} f5 {[%emt 0:00:13]} 2. g3 {[%emt 0:00:00]} Nf6 {[%emt 0:00:17]} 3. Bg2 {[%emt 0:00:00]} e6 {[%emt 0:00:37]} 4. Nf3 {[%emt 0:00:00]} d5 {[%emt 0:04:48]} 5. O-O {[%emt 0:00:00]} Bd6 {[%emt 0:00:55]} 6. c4 {[%emt 0:00:00]} O-O {[%emt 0:00:21]} 7. Nbd2 {[%emt 0:01:11]} c6 {[%emt 0:03:07]} 8. Ne5 {[%emt 0:00:11]} Nbd7 {[%emt 0:00:17]} 9. Nd3 {[%emt 0:00:06]} Kh8 {[%emt 0:03:55]} 10. Qc2 {[%emt 0:00:53]} Qe8 {[%emt 0:07:45]} 11. Nf3 {[%emt 0:00:12]} Ne4 {[%emt 0:01:52]} 12. Bf4 {[%emt 0:05:58]} Be7 {[%emt 0:07:34]} 13. b4 {[%emt 0:08:20]} g5 {[%emt 0:06:04]} 14. Bc7 {[%emt 0:01:43]} Qh5 {[%emt 0:12:32]} 15. b5 {[%emt 0:05:07]} Ndf6 {[%emt 0:10:48]} 16. bxc6 {[%emt 0:05:44]} bxc6 {[%emt 0:00:42]} 17. Nfe5 {[%emt 0:00:06]} Qe8 {[%emt 0:07:23]} 18. c5 {[%emt 0:02:09]} Ng8 {[%emt 0:05:07]} 19. f3 {[%emt 0:01:40]} Nef6 {[%emt 0:00:04]} 20. Qa4 {[%emt 0:06:14]} Bb7 {[%emt 0:03:40]} 21. Rab1 {[%emt 0:07:16]} Qc8 {[%emt 0:01:01]} 22. Bd6 {[%emt 0:00:44]} Ne8 {[%emt 0:00:24]} 23. Qb4 {[%emt 0:22:59]} Ba6 {[%emt 0:00:43]} 24. Bxe7 {[%emt 0:04:50]} Nxe7 {[%emt 0:00:03]} 25. Qd2 {[%emt 0:00:06]} Bxd3 {[%emt 0:07:28]} 26. Nxd3 {[%emt 0:05:17]} h6 {[%emt 0:00:50]} 27. h4 {[%emt 0:01:33]} Rg8 {[%emt 0:00:19]} 28. hxg5 {[%emt 0:00:31]} Rxg5 {[%emt 0:00:40]} 29. Kf2 {[%emt 0:00:13]} Ng6 {[%emt 0:04:14]} 30. Rh1 {[%emt 0:00:20]} Kg7 {[%emt 0:00:00]} 31. Rxh6 {[%emt 0:00:56]} Qd8 {[%emt 0:03:01]} 32. Rbh1 {[%emt 0:00:25]} Rb8 {[%emt 0:03:28]} 33. Nf4 {[%emt 0:00:46]} 1-0

[Event "Hunan Belt and Road Open 2019"]
[Site "Hunan"]
[Date "2019.08.05"]
[Round "8.33"]
[White "Munkhgal, Gombosuren"]
[Black "Xu, Minghui"]
[Result "0-1"]
[ECO "D02"]
[WhiteElo "2442"]
[BlackElo "2401"]
[Annotator "ChessBase"]
[PlyCount "150"]
[EventDate "2019.07.29"]
[EventType "swiss"]
[EventCountry "CHN"]
[SourceTitle "playchess.com"]
[Source "ChessBase"]
[SourceQuality "1"]
[TimeControl "5400+30"]

1. d4 {[%emt 0:00:00]} d5 {[%emt 0:01:19]} 2. Nf3 {[%emt 0:00:00]} Nf6 {[%emt 0:00:19]} 3. Bf4 {[%emt 0:00:00]} e6 {[%emt 0:00:27]} 4. e3 {[%emt 0:00:00]} Bd6 {[%emt 0:00:11]} 5. Bg3 {[%emt 0:00:02]} c5 {[%emt 0:00:25]} 6. Nbd2 {[%emt 0:01:00]} O-O {[%emt 0:02:00]} 7. c3 {[%emt 0:00:56]} Qc7 {[%emt 0:00:06]} 8. dxc5 {[%emt 0:01:36]} Qxc5 {[%emt 0:00:17]} 9. Bd3 {[%emt 0:00:11]} Rd8 {[%emt 0:09:41]} 10. Qe2 {[%emt 0:00:31]} Nbd7 {[%emt 0:01:06]} 11. e4 {[%emt 0:12:16]} dxe4 {[%emt 0:03:00]} 12. Bxe4 {[%emt 0:04:31]} Nb6 {[%emt 0:03:09]} 13. Rd1 {[%emt 0:01:54]} Qc7 {[%emt 0:03:46]} 14. Ne5 {[%emt 0:12:31]} Bd7 {[%emt 0:09:25]} 15. Bb1 {[%emt 0:11:06]} Ba4 {[%emt 0:18:54]} 16. b3 {[%emt 0:01:40]} Nbd5 {[%emt 0:01:59]} 17. bxa4 {[%emt 0:29:15]} Nxc3 {[%emt 0:00:53]} 18. Qc4 {[%emt 0:02:46]} Nxd1 {[%emt 0:09:46]} 19. Qxc7 {[%emt 0:01:20]} Bxc7 {[%emt 0:00:03]} 20. Kxd1 {[%emt 0:00:43]} Nd5 {[%emt 0:03:16]} 21. Nec4 {[%emt 0:04:51]} Rac8 {[%emt 0:02:28]} 22. Kc2 {[%emt 0:03:04]} Ba5 {[%emt 0:14:06]} 23. Kb3 {[%emt 0:00:46]} Bxd2 {[%emt 0:00:06]} 24. Nxd2 {[%emt 0:00:02]} Nc3 {[%emt 0:00:34]} 25. Ne4 {[%emt 0:06:52]} Nxb1 {[%emt 0:02:19]} 26. Rxb1 {[%emt 0:00:00]} Rd3+ {[%emt 0:02:36]} 27. Kb2 {[%emt 0:00:02]} Rc4 {[%emt 0:02:26]} 28. Rc1 {[%emt 0:02:31]} Rxc1 {[%emt 0:00:52]} 29. Kxc1 {[%emt 0:00:00]} Ra3 {[%emt 0:00:02]} 30. Kb2 {[%emt 0:00:47]} Rxa4 {[%emt 0:00:17]} 31. f3 {[%emt 0:00:10]} b6 {[%emt 0:00:34]} 32. Bb8 {[%emt 0:00:48]} a6 {[%emt 0:01:38]} 33. Kb3 {[%emt 0:00:10]} Rd4 {[%emt 0:00:52]} 34. Bc7 {[%emt 0:01:40]} Rd7 {[%emt 0:00:19]} 35. Bg3 {[%emt 0:00:29]} f6 {[%emt 0:00:14]} 36. a4 {[%emt 0:00:29]} Kf8 {[%emt 0:01:46]} 37. Bf2 {[%emt 0:00:48]} Rb7 {[%emt 0:00:23]} 38. Nd6 {[%emt 0:02:38]} Rb8 {[%emt 0:00:20]} 39. Bg3 {[%emt 0:00:14]} Rd8 {[%emt 0:01:21]} 40. Ne4 {[%emt 0:00:12]} Rc8 {[%emt 0:01:11]} 41. Bf2 {[%emt 0:01:07]} Rc6 {[%emt 0:00:03]} 42. Nd2 {[%emt 0:00:26]} Kf7 {[%emt 0:00:58]} 43. Be3 {[%emt 0:00:32]} h5 {[%emt 0:00:28]} 44. h4 {[%emt 0:00:13]} e5 {[%emt 0:00:20]} 45. Ne4 {[%emt 0:00:34]} Ke6 {[%emt 0:00:56]} 46. Kb2 {[%emt 0:00:33]} Kd5 {[%emt 0:01:19]} 47. Kb3 {[%emt 0:00:04]} Re6 {[%emt 0:00:10]} 48. Nc3+ {[%emt 0:00:37]} Kc6 {[%emt 0:00:01]} 49. Kc4 {[%emt 0:00:48]} f5 {[%emt 0:00:41]} 50. g3 {[%emt 0:00:39]} Rd6 {[%emt 0:00:33]} 51. Ne2 {[%emt 0:00:25]} Rd1 {[%emt 0:01:23]} 52. f4 {[%emt 0:00:28]} b5+ {[%emt 0:01:57]} 53. axb5+ {[%emt 0:00:04]} axb5+ {[%emt 0:00:03]} 54. Kc3 {[%emt 0:00:56]} e4 {[%emt 0:00:19]} 55. Kc2 {[%emt 0:00:41]} Rd3 {[%emt 0:00:21]} 56. Bf2 {[%emt 0:00:00]} Kd5 {[%emt 0:00:24]} 57. Nc3+ {[%emt 0:00:37]} Kc4 {[%emt 0:01:34]} 58. Nd1 {[%emt 0:00:02]} Rf3 {[%emt 0:00:12]} 59. Ba7 {[%emt 0:01:22]} Kb4 {[%emt 0:00:58]} 60. Ne3 {[%emt 0:00:29]} g6 {[%emt 0:00:18]} 61. Nd5+ {[%emt 0:00:15]} Kc4 {[%emt 0:00:27]} 62. Ne3+ {[%emt 0:00:14]} Kb4 {[%emt 0:00:00]} 63. Nd5+ {[%emt 0:00:13]} Ka4 {[%emt 0:00:10]} 64. Nc3+ {[%emt 0:00:02]} Ka5 {[%emt 0:00:33]} 65. Ne2 {[%emt 0:00:27]} b4 {[%emt 0:00:11]} 66. Bd4 {[%emt 0:00:21]} Kb5 {[%emt 0:00:21]} 67. Bf6 {[%emt 0:00:23]} Kc4 {[%emt 0:00:09]} 68. Bb2 {[%emt 0:00:22]} b3+ {[%emt 0:01:57]} 69. Kd2 {[%emt 0:00:14]} e3+ {[%emt 0:00:21]} 70. Ke1 {[%emt 0:00:06]} Kd3 {[%emt 0:00:29]} 71. Bf6 {[%emt 0:00:16]} Rf2 {[%emt 0:00:38]} 72. Nc1+ {[%emt 0:00:48]} Kc2 {[%emt 0:00:01]} 73. Bd4 {[%emt 0:00:27]} Kxc1 {[%emt 0:00:37]} 74. Bxe3+ {[%emt 0:00:04]} Kc2 {[%emt 0:00:06]} 75. Kxf2 {[%emt 0:00:05]} b2 {[%emt 0:00:03]} 0-1